bitfinex-derivatives/quotes_ETHF0:USTF0_20250905
["timestamp","ask_amount","ask_price","bid_price","bid_amount"]
[1757042982598,0.9533,4301.5,4301.4,3.9194]
[1757042982797,0.9533,4301.5,4301.4,6.41193836]
[1757042984796,0.9533,4301.5,4301.4,6.65163836]
[1757042986697,0.723,4301.5,4301.4,6.65163836]
[1757042988709,0.723,4301.5,4301.4,6.41363836]
[1757042988901,0.723,4301.5,4301.4,6.65163836]
[1757042989805,0.3411,4301.5,4301.4,6.65163836]
[1757042992400,0.1505,4302.0,4301.4,6.65163836]
[1757042992606,0.4944,4302.0,4301.9,0.6848]
[1757042992905,0.3439,4302.0,4301.9,3.2445]
[1757042993298,0.1405,4302.5,4301.9,3.2445]
[1757042993499,0.7045,4302.5,4302.4,0.4569]
[1757042993806,0.934,4302.5,4302.4,0.6949]
[1757042996499,0.934,4302.5,4302.4,3.41533836]
[1757042997804,0.934,4302.5,4302.4,3.18743836]
[1757042999108,0.934,4302.5,4302.4,3.41533836]
[1757043000110,0.3439,4302.4,4301.7,0.2279]
[1757043000311,0.4496,4302.2,4302.1,2.49253836]
[1757043000502,0.7935,4302.2,4302.1,2.96143836]
[1757043000705,0.7935,4302.2,4302.1,0.86573836]
[1757043001108,0.7935,4302.2,4302.1,0.62773836]
[1757043001302,0.7935,4302.2,4302.1,0.6949]
[1757043004108,0.1374,4302.0,4301.6,3.2078]
[1757043004412,0.7935,4301.8,4301.7,2.96143836]
[1757043004914,0.7935,4301.8,4301.7,0.86573836]
[1757043005214,0.7935,4301.8,4301.7,0.238]
[1757043005512,0.7935,4301.8,4301.7,0.4689]
[1757043008210,0.3439,4301.7,4301.6,3.2078]
[1757043008517,0.7935,4301.7,4301.6,3.2078]
[1757043011819,0.7935,4301.7,4301.6,3.4387]
[1757043012313,0.3439,4301.7,4301.6,3.8926]
[1757043012508,0.1374,4302.0,4301.8,0.4569]
[1757043012509,0.3439,4301.9,4301.8,0.4569]
[1757043012710,0.3439,4301.9,4301.8,3.2435]
[1757043012910,0.3439,4301.9,4301.8,0.9218]
[1757043013712,3.2078,4302.2,4301.8,1.09263836]
[1757043013912,0.3439,4302.4,4302.1,0.2279]
[1757043014110,0.3439,4302.4,4302.3,0.6848]
[1757043014309,0.3439,4302.4,4302.3,0.85563836]
[1757043014517,0.3439,4302.6,4302.4,0.217]
[1757043014814,0.3439,4302.6,4302.5,0.9109]
[1757043015007,0.3439,4302.6,4302.5,3.40343836]
[1757043015515,0.3604,4303.0,4302.9,0.4569]
[1757043015715,0.3604,4303.0,4302.9,0.6739]
[1757043016016,0.3604,4303.0,4302.7,0.237]
[1757043016017,0.4496,4302.8,4302.7,0.237]
[1757043016217,0.7935,4302.8,4302.7,0.86473836]
[1757043016417,0.564,4302.8,4302.7,1.08173836]
[1757043016719,0.564,4302.8,4302.7,0.237]
[1757043016720,0.7935,4302.8,4302.7,0.237]
[1757043017316,0.7935,4302.8,4302.7,0.4679]
[1757043017516,0.7935,4302.8,4302.7,0.6939]
[1757043018518,0.564,4302.8,4302.7,3.40183836]
[1757043018816,0.3439,4302.8,4302.7,3.40183836]
[1757043020109,0.8096,4302.8,4302.7,3.18643836]
[1757043020510,1.63857341,4302.8,4302.7,0.40783836]
[1757043020719,1.63857341,4302.8,4302.7,2.72953836]
[1757043022924,1.63857341,4302.8,4302.7,2.94783836]
[1757043023424,1.63857341,4302.8,4302.7,3.17663836]
[1757043025726,0.1403,4303.0,4302.7,3.17663836]
[1757043026029,0.3709,4303.0,4302.9,2.7688]
[1757043026230,0.3709,4303.0,4302.9,3.0058]
[1757043026415,0.7078,4303.0,4302.9,3.0058]
[1757043026822,0.9429,4303.0,4302.9,0.62613836]
[1757043027030,0.9429,4303.0,4302.9,0.38913836]
[1757043027328,0.9429,4303.0,4302.9,0.62613836]
[1757043027524,0.9429,4303.0,4302.6,3.2078]
[1757043027725,0.9429,4303.0,4302.9,0.4553]
[1757043029825,1.77187341,4303.0,4302.9,0.4553]
[1757043033941,1.77187341,4303.0,4302.6,3.2078]
[1757043034139,0.4657,4302.8,4302.7,0.17083836]
[1757043034332,0.8026,4302.8,4302.7,0.38913836]
[1757043037038,0.3369,4302.8,4302.7,3.15413836]
[1757043037338,0.3369,4303.0,4302.9,0.6616]
[1757043037534,0.3369,4303.0,4302.9,3.2203]
[1757043038038,0.3369,4303.0,4302.9,3.39113836]
[1757043038634,3.5447,4303.2,4302.9,2.72953836]
[1757043038839,0.8026,4303.2,4303.1,2.7688]
[1757043039137,0.8026,4303.2,4303.1,3.0058]
[1757043039339,0.8026,4303.2,4303.1,0.6841]
[1757043041642,0.8026,4303.2,4303.1,0.8986]
[1757043042140,0.8026,4303.2,4303.1,0.6841]
[1757043045143,0.8026,4303.2,4303.1,0.8986]
[1757043045144,0.5675,4303.2,4303.1,0.8986]
[1757043045343,0.3369,4303.2,4303.1,0.8986]
[1757043045842,0.3369,4303.2,4303.1,1.06943836]
[1757043046235,0.8026,4303.2,4303.1,0.85493836]
[1757043049839,0.8026,4303.2,4303.1,1.05793836]
[1757043051741,0.8026,4303.2,4303.1,0.85493836]
[1757043055448,0.8026,4303.2,4303.1,1.05793836]
[1757043056944,0.5675,4303.2,4303.1,1.05793836]
[1757043057254,0.3369,4303.2,4303.1,1.05793836]
[1757043060652,0.5509,4303.2,4303.1,1.05793836]
[1757043061248,0.5509,4303.2,4303.1,0.8871]
[1757043063255,0.3369,4303.2,4303.1,4.0949]
[1757043063957,0.3387,4303.4,4303.2,0.203]
[1757043064151,0.1374,4304.0,4303.1,4.48098836]
[1757043064152,0.3387,4303.9,4303.5,0.203]
[1757043064351,0.3387,4303.9,4303.8,2.9828]
[1757043064549,0.3387,4303.9,4303.8,3.15363836]
[1757043064748,0.3387,4303.9,4303.8,0.83193836]
[1757043065448,3.2078,4304.9,4303.8,0.83193836]
[1757043065656,0.5527,4304.3,4304.2,2.9828]
[1757043065958,0.5527,4304.3,4304.2,3.2198]
[1757043066149,0.5527,4304.3,4304.2,0.8981]
[1757043066345,0.5527,4304.3,4304.2,3.2198]
[1757043068155,0.4411,4304.3,4304.2,0.237]
[1757043068357,0.7798,4303.7,4303.6,0.237]
[1757043068554,0.7798,4303.7,4302.9,0.4581]
[1757043068555,0.688,4303.0,4302.9,0.4581]
[1757043068753,0.3387,4303.0,4302.9,0.8981]
[1757043069058,0.1353,4303.5,4302.9,2.5587]
[1757043069256,0.3493,4303.5,4303.4,0.4581]
[1757043069460,0.3493,4303.5,4303.4,0.6951]
[1757043069756,0.688,4303.5,4303.4,0.6951]
[1757043069957,0.9151,4303.5,4303.4,0.6951]
[1757043070545,0.9151,4303.5,4303.4,0.4637]
[1757043071045,0.9151,4303.5,4303.4,0.6951]
[1757043071250,0.688,4303.5,4303.4,3.39063836]
[1757043077860,0.3387,4303.5,4303.4,3.39063836]
[1757043078057,0.317,4303.9,4303.5,0.191]
[1757043078255,0.3453,4304.0,4303.6,2.5587]
[1757043078455,0.3453,4304.0,4303.9,0.436]
[1757043078658,0.5758,4304.0,4303.9,0.673]
[1757043079160,0.8928,4304.0,4303.9,0.673]
[1757043079360,0.7575,4303.4,4303.3,0.2136]
[1757043079560,0.7575,4303.4,4303.3,0.4506]
[1757043079859,0.7575,4303.4,4303.3,0.84383836]
[1757043080663,0.7575,4303.4,4303.3,0.60683836]
[1757043080864,0.7575,4303.4,4303.3,0.84383836]
[1757043084466,0.7575,4303.4,4303.3,0.40783836]
[1757043085058,0.7575,4303.4,4303.3,0.62143836]
[1757043086365,0.7575,4303.4,4303.3,0.38443836]
[1757043086564,0.7575,4303.4,4303.3,0.62143836]
[1757043087364,0.7575,4303.4,4303.3,0.40783836]
[1757043087667,0.7575,4303.4,4303.3,0.237]
[1757043088460,0.527,4303.9,4303.8,0.6266]
[1757043088665,0.317,4303.9,4303.8,0.8636]
[1757043088865,0.317,4303.9,4303.8,1.03443836]
[1757043089963,0.527,4303.9,4303.8,1.03443836]
[1757043090569,0.7575,4303.9,4303.8,0.60683836]
[1757043090770,0.7575,4303.9,4303.8,0.62143836]
[1757043092669,0.7575,4303.9,4303.8,0.84383836]
[1757043092867,0.317,4303.9,4303.8,1.03443836]
[1757043094573,0.527,4303.9,4303.8,1.03443836]
[1757043096073,0.317,4304.4,4303.9,0.1906]
[1757043096286,0.317,4304.5,4304.4,0.6266]
[1757043096569,0.527,4304.9,4304.8,0.6266]
[1757043096876,0.317,4304.9,4304.8,4.0714]
[1757043097068,0.527,4304.9,4304.8,3.8808]
[1757043097268,0.527,4304.9,4304.8,4.0714]
[1757043097668,0.317,4304.9,4304.8,4.0714]
[1757043097966,0.317,4304.9,4304.8,4.24223836]
[1757043098969,0.527,4304.9,4304.8,4.24223836]
[1757043099577,0.527,4304.9,4304.8,4.05163836]
[1757043099777,0.317,4304.9,4304.8,4.24223836]
[1757043100273,0.527,4304.9,4304.8,4.05163836]
[1757043101577,0.7575,4304.9,4304.8,3.81463836]
[1757043101780,0.7575,4304.9,4304.8,3.2078]
[1757043102072,0.7575,4304.9,4304.8,3.4448]
[1757043103982,0.7575,4304.9,4304.8,3.6584]
[1757043104483,0.7575,4304.9,4304.8,3.4448]
[1757043104982,0.7575,4304.9,4304.8,3.8808]
[1757043105373,0.7575,4304.9,4304.8,3.6438]
[1757043105574,0.7575,4304.9,4304.8,3.8798]
[1757043106181,0.7575,4304.9,4304.8,3.6438]
[1757043106380,0.7575,4304.9,4304.8,3.8798]
[1757043107380,0.7575,4304.9,4304.8,3.6438]
[1757043107583,0.7575,4304.9,4304.8,3.8798]
[1757043108974,0.317,4304.9,4304.8,4.22973836]
[1757043112086,0.5321,4304.9,4304.8,4.05063836]
[1757043113285,0.5321,4304.9,4304.8,4.22973836]
[1757043113488,0.317,4304.9,4304.8,4.22973836]
[1757043114279,0.5321,4304.9,4304.8,4.05063836]
[1757043114988,0.7505,4304.9,4304.8,4.05063836]
[1757043115582,0.5321,4304.9,4304.8,4.22973836]
[1757043115781,0.317,4304.9,4304.8,4.22973836]
[1757043116690,0.5321,4304.9,4304.8,3.81463836]
[1757043116886,0.7505,4304.9,4304.8,4.05063836]
[1757043117086,0.7505,4304.9,4304.8,3.81463836]
[1757043117287,0.7505,4304.9,4304.8,4.05063836]
[1757043120392,0.317,4304.9,4304.8,4.22973836]
[1757043121194,0.317,4304.9,4304.8,4.0589]
[1757043121388,0.317,4304.9,4304.8,4.22973836]
[1757043123491,1.85305738,4305.5,4305.4,0.2219]
[1757043123691,1.85305738,4305.5,4305.4,0.4579]
[1757043124288,1.85305738,4305.5,4305.4,0.6718]
[1757043124791,1.85305738,4305.5,4305.4,0.236]
[1757043125688,1.85305738,4305.5,4304.8,3.2078]
[1757043125891,0.5633,4305.0,4304.9,2.72853836]
[1757043126193,0.8887,4305.0,4304.9,2.72853836]
[1757043126395,0.8887,4305.0,4304.9,0.62873836]
[1757043129897,0.8887,4305.0,4304.9,0.84263836]
[1757043130489,0.6703,4305.0,4304.9,1.02173836]
[1757043132588,4.17295738,4305.9,4305.1,0.3179]
[1757043132895,3.6413,4305.9,4305.8,0.5398]
[1757043133301,3.6413,4305.9,4305.8,0.7537]
[1757043134500,3.9667,4305.9,4305.8,0.7537]
[1757043136503,3.9667,4305.9,4305.8,0.3179]
[1757043137302,3.7483,4305.9,4305.8,0.7537]
[1757043137507,3.9667,4305.9,4305.8,0.7537]
[1757043138603,3.9667,4305.9,4305.8,0.5398]
[1757043138908,3.9667,4305.9,4305.8,0.3179]
[1757043139609,4.79460028,4305.9,4305.8,0.3179]
[1757043141207,4.79460028,4305.9,4305.8,0.5254]
[1757043143817,4.79460028,4305.9,4305.8,0.3179]
[1757043144014,4.79460028,4305.9,4305.7,0.236]
[1757043144210,0.3156,4305.8,4305.7,0.7593]
[1757043144415,0.7389,4305.8,4305.7,0.7593]
[1757043145816,0.7389,4305.8,4305.7,0.9756]
[1757043147115,0.18444362,4306.4,4306.1,0.3158]
[1757043147323,4.03570028,4307.1,4307.0,0.4393]
[1757043147614,4.03570028,4307.1,4306.5,0.09023836]
[1757043147809,0.82790028,4306.6,4306.5,0.09023836]
[1757043148022,0.82790028,4306.6,4306.3,0.3158]
[1757043148319,0.82790028,4306.6,4306.5,0.4393]
[1757043148616,0.236,4307.1,4307.0,0.1235]
[1757043148823,0.236,4307.1,4307.0,0.4393]
[1757043149011,1.016778,4307.2,4307.0,0.1235]
[1757043149219,1.016778,4307.2,4307.1,0.3158]
[1757043149422,0.236,4307.5,4307.1,0.5233]
[1757043149618,0.82790028,4307.2,4307.1,0.5233]
[1757043150725,3.2078,4307.6,4307.2,0.3158]
[1757043151018,0.82790028,4307.3,4307.2,0.5233]
[1757043151214,0.82790028,4307.3,4307.2,0.7396]
[1757043151519,3.2078,4307.6,4307.5,0.8631]
[1757043151715,0.18653025,4307.9,4307.6,0.3158]
[1757043151716,0.82790028,4307.8,4307.6,0.3158]
[1757043151917,0.82790028,4307.8,4307.7,0.5233]
[1757043153414,0.82790028,4307.8,4307.7,0.3158]
[1757043153616,5.88794056,4307.8,4307.0,0.4393]
[1757043153919,5.88794056,4307.8,4307.0,0.42123836]
[1757043153920,0.82790028,4307.1,4307.0,0.42123836]
[1757043154119,0.82790028,4307.1,4307.0,0.8631]
[1757043154422,3.2078,4307.6,4307.5,0.1235]
[1757043154613,4.03570028,4307.6,4307.5,0.4393]
[1757043154812,4.03570028,4307.6,4307.5,0.52953836]
[1757043156625,3.2078,4307.6,4307.0,0.4393]
[1757043156921,3.2078,4307.6,4307.2,0.40603836]
[1757043157115,3.2078,4307.6,4307.3,0.3158]
[1757043158023,0.82790028,4307.4,4307.3,0.3158]
[1757043158822,0.82790028,4307.4,4307.3,0.5233]
[1757043159523,0.82790028,4307.4,4307.3,0.7396]
[1757043161832,0.82790028,4307.4,4307.3,0.5233]
[1757043162019,0.82790028,4307.4,4307.3,0.3158]
[1757043165523,3.2078,4307.6,4307.3,0.2075]
[1757043165723,3.2078,4307.6,4307.5,0.1235]
[1757043166025,3.2078,4307.6,4307.5,0.4393]
[1757043166225,3.2078,4307.6,4307.5,0.3158]
[1757043166434,0.4233,4306.7,4306.6,0.2075]
[1757043166726,1.56680028,4306.7,4306.6,0.4238]
[1757043166927,1.56680028,4306.7,4306.6,0.51403836]
[1757043167328,1.56680028,4306.7,4306.6,0.29773836]
[1757043167524,0.7389,4306.2,4306.1,3.2078]
[1757043167729,1.56680028,4306.2,4305.7,0.236]
[1757043168031,1.56680028,4306.2,4306.1,0.09023836]
[1757043168032,0.7389,4306.2,4306.1,0.09023836]
[1757043169033,1.56680028,4306.2,4306.1,0.63773836]
[1757043169227,0.4233,4306.2,4306.1,0.86073836]
[1757043169531,1.15080028,4306.5,4306.2,0.3307]
[1757043169733,1.36990028,4306.5,4306.4,0.4398]
[1757043169922,1.57670028,4306.5,4306.4,0.86073836]
[1757043171230,1.69400028,4306.5,4306.1,0.3307]
[1757043171434,0.8661,4306.5,4306.2,0.09023836]
[1757043171634,0.8661,4306.5,4306.1,0.3307]
[1757043172636,1.25380028,4306.2,4306.1,0.3307]
[1757043172832,1.57670028,4306.2,4306.1,0.42093836]
[1757043173036,1.57670028,4306.2,4306.1,0.63773836]
[1757043174227,0.4259,4305.8,4305.7,0.3307]
[1757043174432,1.57670028,4305.8,4305.7,0.09023836]
[1757043174633,1.57670028,4305.8,4305.7,0.42093836]
[1757043174837,1.7593189,4305.8,4305.7,0.42093836]
[1757043175341,1.57670028,4305.8,4305.7,0.42093836]
[1757043176241,1.57670028,4305.8,4305.7,0.63773836]
[1757043176441,1.57670028,4305.8,4305.7,0.86073836]
[1757043176645,1.04700028,4305.8,4305.7,0.86073836]
[1757043177533,1.57670028,4305.8,4305.7,0.86073836]
[1757043178737,0.4551,4306.1,4306.0,0.1303]
[1757043179042,1.28300028,4306.1,4306.0,0.9008]
[1757043179339,1.04700028,4306.1,4306.0,0.99103836]
[1757043179739,1.25380028,4306.1,4306.0,0.99103836]
[1757043179931,1.57670028,4306.1,4306.0,0.99103836]
[1757043180134,1.57670028,4306.1,4306.0,0.86073836]
[1757043180334,1.57670028,4306.1,4306.0,0.63773836]
[1757043181244,1.57670028,4306.1,4306.0,0.5475]
[1757043182730,1.57670028,4306.1,4306.0,0.7705]
[1757043182931,1.25380028,4306.1,4306.0,0.9008]
[1757043183943,0.2191,4306.1,4306.0,0.99103836]
[1757043184247,0.82790028,4307.0,4306.6,0.7705]
[1757043184442,0.4259,4306.8,4306.7,0.3307]
[1757043184743,0.4259,4306.8,4306.7,0.7705]
[1757043185333,0.7488,4306.8,4306.7,0.7705]
[1757043185941,0.4259,4306.8,4306.7,0.7705]
[1757043186147,0.82790028,4307.0,4306.7,0.7705]
[1757043186148,0.82790028,4307.0,4306.7,0.4398]
[1757043186357,1.04700028,4307.0,4306.9,0.4398]
[1757043186548,1.04700028,4307.0,4306.9,0.7705]
[1757043189249,1.57670028,4307.0,4306.6,0.3307]
[1757043189445,1.25380028,4306.7,4306.6,0.3307]
[1757043189650,1.57670028,4306.7,4306.6,0.5475]
[1757043191050,1.25380028,4306.7,4306.6,0.7705]
[1757043191250,3.4438,4307.1,4306.6,0.7705]
[1757043191452,0.82790028,4306.9,4306.7,0.3307]
[1757043191947,1.04700028,4306.9,4306.8,0.7705]
[1757043192342,1.57670028,4306.9,4306.8,0.5475]
[1757043192647,1.25380028,4306.9,4306.0,3.3381]
[1757043192854,0.5297,4305.7,4305.6,0.4398]
[1757043193038,0.7488,4305.7,4305.6,0.4398]
[1757043193650,0.4259,4305.7,4305.6,0.4398]
[1757043194037,0.7488,4305.7,4305.6,0.4398]
[1757043194251,0.3229,4305.6,4305.3,3.2078]
[1757043194557,0.7488,4305.6,4305.5,0.2168]
[1757043194851,0.7488,4305.6,4305.5,0.5475]
[1757043196047,0.7488,4305.6,4305.3,3.2078]
[1757043196048,0.4259,4305.6,4305.3,3.2078]
[1757043196256,1.57670028,4305.4,4305.3,3.5385]
[1757043196749,1.57670028,4305.4,4305.3,3.7553]
[1757043197457,0.2191,4305.4,4305.3,3.9783]
[1757043197643,0.82790028,4305.7,4305.3,3.9783]
[1757043197846,1.04250028,4305.7,4305.6,0.7467]
[1757043198047,1.25570028,4305.7,4305.6,0.7467]
[1757043198243,1.58280028,4305.7,4305.6,0.7467]
[1757043200661,1.25570028,4305.7,4305.6,0.7467]
[1757043200957,0.4278,4306.3,4306.2,0.4106]
[1757043201157,0.4278,4306.3,4306.2,0.7467]
[1757043203862,0.2146,4306.3,4306.2,0.7467]
[1757043207767,0.7549,4306.3,4306.2,0.7467]
[1757043208765,0.3271,4306.2,4305.9,0.3361]
[1757043208965,0.4278,4306.0,4305.9,0.5413]
[1757043209171,0.7549,4306.0,4305.9,0.5413]
[1757043209572,0.7549,4306.0,4305.9,0.7467]
[1757043209970,0.4278,4306.0,4305.9,0.7467]
[1757043215479,0.7549,4306.0,4305.9,0.7467]
[1757043218277,0.7549,4306.0,4305.5,0.1316]
[1757043218470,1.71890223,4305.7,4305.6,0.5413]
[1757043219074,1.71890223,4305.7,4305.6,0.7467]
[1757043220579,1.71890223,4305.7,4305.6,0.3361]
[1757043221083,0.7549,4305.7,4305.6,0.5413]
[1757043223180,0.7549,4305.7,4305.3,3.2078]
[1757043223484,0.4278,4304.8,4304.7,0.5413]
[1757043223679,1.71890223,4304.8,4304.2,0.3361]
[1757043223877,4.92670223,4304.8,4304.2,0.3361]
[1757043225485,4.92670223,4304.8,4304.7,0.2052]
[1757043225688,3.2078,4305.4,4304.7,0.7467]
[1757043225990,3.2078,4305.4,4305.3,0.7467]
[1757043226285,3.6356,4305.4,4305.3,0.7467]
[1757043226682,3.4224,4305.4,4305.3,0.7467]
[1757043228887,0.5363,4306.1,4306.0,0.5449]
[1757043229080,0.2095,4306.1,4306.0,0.8654]
[1757043229285,0.7391,4306.1,4306.0,0.8654]
[1757043229589,0.7391,4306.1,4306.0,0.736]
[1757043230490,0.7391,4306.1,4306.0,0.8654]
[1757043231192,0.7391,4306.1,4306.0,0.5233]
[1757043235691,0.2095,4306.1,4306.0,0.8654]
[1757043235885,0.4123,4306.1,4306.0,0.8654]
[1757043236093,0.7391,4306.1,4306.0,0.8654]
[1757043236288,0.96400223,4306.2,4306.0,0.5449]
[1757043236589,0.4123,4306.1,4306.0,0.8654]
[1757043236792,0.7391,4306.1,4306.0,0.8654]
[1757043241593,0.4123,4306.1,4306.0,0.8654]
[1757043243893,0.7391,4306.1,4306.0,0.8654]
[1757043244497,0.3268,4306.0,4305.8,0.3205]
[1757043244700,0.7391,4305.9,4305.8,0.5233]
[1757043245098,0.7391,4305.9,4305.8,0.736]
[1757043245797,0.2095,4305.9,4305.8,0.736]
[1757043245998,3.2078,4306.4,4306.2,0.3205]
[1757043246202,3.2078,4306.4,4306.3,0.736]
[1757043252904,0.3268,4306.8,4306.5,0.1294]
[1757043253104,0.7391,4306.8,4306.7,0.736]
[1757043254010,0.4123,4306.8,4306.7,0.736]
[1757043254410,0.2095,4306.8,4306.7,0.736]
[1757043254805,0.7391,4306.8,4306.7,0.736]
[1757043255009,0.4123,4306.8,4306.7,0.736]
[1757043256413,0.4123,4306.7,4306.4,0.3205]
[1757043256716,0.7391,4306.5,4306.4,0.3205]
[1757043256908,0.3268,4306.4,4306.3,0.5555]
[1757043257102,0.7391,4306.4,4306.3,0.5555]
[1757043257304,0.7391,4306.4,4306.3,0.7583]
[1757043257709,0.7391,4306.4,4306.3,0.971]
[1757043258101,0.3243,4306.3,4305.8,3.5168]
[1757043258313,0.7338,4305.2,4305.1,3.34869238]
[1757043258515,0.7338,4305.2,4305.1,0.6669]
[1757043258811,0.7338,4305.2,4304.5,3.04619238]
[1757043258812,0.7338,4304.6,4304.5,0.4319]
[1757043259007,0.7338,4304.6,4304.5,0.2173]
[1757043259206,0.96400223,4304.8,4304.3,3.2078]
[1757043259207,0.7338,4304.4,4304.3,3.2078]
[1757043260417,1.69780223,4304.4,4304.3,3.2078]
[1757043261310,0.7338,4304.4,4304.3,3.2078]
[1757043261510,1.69780223,4304.4,4304.3,3.2078]
[1757043262214,0.7338,4304.4,4304.3,3.6397]
[1757043262412,0.116,4304.6,4304.3,3.8747]
[1757043262618,0.6483,4304.6,4304.5,0.7409]
[1757043262920,0.7338,4304.6,4304.5,0.7409]
[1757043263417,3.5649,4305.0,4304.5,0.8608]
[1757043263418,4.1580936,4305.0,4304.5,0.8608]
[1757043263614,2.4845808,4307.8,4305.2,0.4319]
[1757043263615,0.208,4305.3,4305.2,0.4319]
[1757043263822,0.7338,4305.3,4305.2,0.7409]
[1757043264120,0.7338,4305.3,4305.2,0.2173]
[1757043267420,0.7338,4305.3,4305.2,0.7409]
[1757043268721,0.116,4305.5,4305.3,0.309]
[1757043268914,0.116,4305.5,4305.4,0.4319]
[1757043269110,0.208,4305.5,4305.4,0.7409]
[1757043269320,0.5323,4305.5,4305.4,0.7409]
[1757043270323,0.7338,4305.5,4305.4,0.7409]
[1757043272221,1.2684936,4305.7,4305.6,0.7409]
[1757043272520,1.3604936,4305.7,4305.6,0.7409]
[1757043273013,0.5323,4305.7,4305.6,0.7409]
[1757043273212,3.2078,4306.1,4305.6,0.7409]
[1757043273213,0.5323,4306.3,4306.2,0.4319]
[1757043273418,0.7338,4306.3,4306.2,0.7409]
[1757043273620,0.7338,4306.3,4305.8,3.2078]
[1757043273621,0.208,4305.9,4305.8,3.2078]
[1757043273818,1.5619936,4305.9,4305.8,3.4251]
[1757043274520,1.5619936,4305.9,4305.2,0.309]
[1757043274521,0.1221,4305.5,4305.2,0.309]
[1757043274723,1.5619936,4305.3,4305.2,0.4319]
[1757043275223,1.5619936,4305.3,4305.2,0.7409]
[1757043276810,0.8281936,4305.6,4305.2,0.7409]
[1757043277016,0.3243,4305.6,4305.5,0.4319]
[1757043277219,0.208,4305.6,4305.5,0.8608]
[1757043277417,3.3299,4306.0,4305.8,0.4319]
[1757043277418,0.5323,4305.9,4305.8,0.4319]
[1757043277724,0.5323,4305.9,4305.8,0.7409]
[1757043277925,0.7338,4305.9,4305.8,0.7409]
[1757043279721,0.5323,4305.9,4305.8,0.7409]
[1757043279924,3.2078,4306.0,4305.8,0.7409]
[1757043280131,3.5321,4306.0,4305.9,0.309]
[1757043280426,3.9416,4306.0,4305.9,0.7409]
[1757043280928,4.0637,4306.0,4305.9,0.4319]
[1757043282925,4.0637,4306.0,4305.5,0.3549]
[1757043282926,0.5323,4306.4,4306.0,0.1199]
[1757043283127,0.5323,4306.4,4306.3,0.4319]
[1757043283330,0.7338,4306.4,4306.3,0.7409]
[1757043284124,0.7338,4306.4,4306.3,0.4319]
[1757043284327,0.7338,4306.4,4305.7,3.2078]
[1757043284520,3.4459,4306.5,4305.7,3.2078]
[1757043284521,1.2376936,4305.8,4305.7,3.2078]
[1757043284726,0.7338,4305.6,4305.5,0.235]
[1757043284927,0.7338,4305.6,4305.5,0.4523]
[1757043285333,0.7338,4305.6,4305.5,0.7613]
[1757043285530,0.7338,4305.6,4305.5,0.9759]
[1757043287127,0.7338,4305.6,4305.5,0.4523]
[1757043287332,0.4095,4305.2,4305.1,3.9487]
[1757043287532,0.7338,4305.2,4305.1,4.1837]
[1757043287832,0.7338,4305.2,4305.1,3.9487]
[1757043288130,0.7338,4305.2,4305.1,4.1837]
[1757043290232,1.2695936,4305.5,4305.1,4.1837]
[1757043290430,0.851,4306.0,4305.9,0.7374]
[1757043291427,0.7289,4306.0,4305.9,0.7374]
[1757043292339,0.8577,4306.0,4305.9,0.4215]
[1757043292833,0.8577,4306.0,4305.9,0.7374]
[1757043293834,0.7289,4306.0,4305.9,0.7374]
[1757043294535,0.8577,4306.0,4305.9,0.7374]
[1757043294835,0.4096,4305.4,4305.3,0.5271]
[1757043295036,0.7289,4305.4,4305.3,0.9724]
[1757043295735,0.5253,4305.4,4305.3,0.9724]
[1757043297132,0.206,4305.4,4305.3,0.9724]
[1757043297328,0.9569936,4306.0,4305.6,0.4215]
[1757043297531,0.5253,4306.0,4305.9,0.7374]
[1757043298234,0.7289,4306.0,4305.9,0.7374]
[1757043300735,0.116,4306.2,4305.9,0.7374]
[1757043300937,0.116,4306.2,4306.1,0.7374]
[1757043301234,0.7289,4306.2,4306.1,0.7374]
[1757043301943,0.7289,4306.2,4306.1,0.4215]
[1757043302642,0.7289,4306.2,4306.1,0.7374]
[1757043310751,0.7289,4306.2,4305.7,0.3159]
[1757043311050,1.2377936,4305.9,4305.8,0.5271]
[1757043311452,1.5570936,4305.9,4305.8,0.5271]
[1757043312243,1.5570936,4305.9,4305.8,0.2112]
[1757043312447,1.5570936,4305.9,4305.8,0.5271]
[1757043312652,1.5570936,4305.9,4305.8,0.7374]
[1757043314649,0.4096,4305.5,4305.4,0.9724]
[1757043314845,0.7289,4305.5,4305.4,0.9724]
[1757043315146,0.8281936,4305.9,4305.4,0.6565]
[1757043315352,1.0341936,4305.9,4305.8,0.2112]
[1757043315545,1.2377936,4305.9,4305.8,0.5271]
[1757043315948,1.5570936,4305.9,4305.8,0.7374]
[1757043320660,0.7289,4305.9,4305.8,0.7374]
[1757043321352,0.5253,4305.9,4305.8,0.7374]
[1757043321650,0.3975,4306.3,4306.2,0.3999]
[1757043321853,0.702,4306.3,4306.2,0.7148]
[1757043327254,0.5061,4306.3,4306.2,0.7148]
[1757043328656,3.6283,4306.5,4306.3,0.3149]
[1757043328959,3.8299,4306.5,4306.4,0.7148]
[1757043329160,4.0258,4306.5,4306.4,0.7148]
[1757043329355,3.9098,4306.5,4306.4,0.7148]
[1757043331449,4.0334,4306.5,4306.4,0.7148]
[1757043332361,4.0334,4306.5,4306.4,0.3999]
[1757043332751,4.0334,4306.5,4305.9,0.235]
[1757043332752,4.99739451,4306.5,4305.9,0.235]
[1757043333059,0.8256,4306.0,4305.9,0.235]
[1757043334053,0.3045,4305.9,4305.8,0.1989]
[1757043334255,0.702,4305.9,4305.8,0.1989]
[1757043334459,0.702,4305.8,4305.7,0.1989]
[1757043334660,0.702,4305.8,4305.7,0.7148]
[1757043341161,0.3045,4306.3,4306.2,0.1989]
[1757043341362,0.5061,4306.3,4306.2,0.7148]
[1757043342064,0.702,4306.3,4306.2,0.7148]